bitfinex-derivatives/quotes_BTCF0:USTF0_20250129
["timestamp","ask_amount","ask_price","bid_price","bid_amount"]
[1738163695783,0.195514,102330.0,102320.0,0.29001768]
[1738163695978,0.195514,102330.0,102320.0,0.48555068]
[1738163696480,0.195514,102330.0,102320.0,0.195533]
[1738163697067,0.195533,102320.0,102310.0,0.49890118]
[1738163697272,0.195533,102320.0,102310.0,0.29362981]
[1738163697580,0.452533,102320.0,102310.0,0.29362981]
[1738163697779,0.452533,102320.0,102310.0,0.48918181]
[1738163698086,0.452533,102320.0,102310.0,0.29162981]
[1738163698471,0.59032554,102320.0,102310.0,0.29162981]
[1738163698876,0.59132554,102320.0,102310.0,0.29016452]
[1738163699179,0.95212554,102320.0,102310.0,0.29016452]
[1738163700979,0.95212554,102320.0,102300.0,0.29001768]
[1738163701175,0.69414454,102310.0,102300.0,0.29001768]
[1738163702082,0.195571,102300.0,102290.0,0.35019896]
[1738163702280,0.322871,102300.0,102290.0,0.3503458]
[1738163702486,0.195571,102300.0,102290.0,0.9067358]
[1738163703279,0.195571,102300.0,102290.0,0.7111458]
[1738163703476,0.33336354,102300.0,102290.0,0.3503458]
[1738163703677,0.195571,102300.0,102290.0,0.5459358]
[1738163703981,0.195571,102300.0,102290.0,0.19573684]
[1738163704181,0.195571,102300.0,102290.0,0.55653684]
[1738163704386,0.195562,102310.0,102300.0,0.195571]
[1738163704679,0.001,102310.0,102300.0,0.74305554]
[1738163705487,0.31210043,102320.0,102310.0,0.195552]
[1738163705873,0.11656043,102320.0,102310.0,0.3608]
[1738163706074,0.11656043,102320.0,102310.0,0.69414454]
[1738163706485,0.11656043,102320.0,102310.0,0.82154454]
[1738163707479,0.14553158,102330.0,102320.0,0.195533]
[1738163707684,0.79834857,102360.0,102320.0,0.82066708]
[1738163707873,0.195478,102350.0,102340.0,0.69407154]
[1738163708079,0.195478,102350.0,102340.0,0.556279]
[1738163709091,0.195478,102350.0,102340.0,0.558279]
[1738163709674,0.195478,102350.0,102340.0,0.002]
[1738163709880,0.33327054,102350.0,102340.0,0.002]
[1738163710081,0.82317054,102350.0,102340.0,0.002]
[1738163710684,0.46237054,102350.0,102340.0,0.002]
[1738163711081,0.46237054,102350.0,102340.0,0.003]
[1738163711284,0.82317054,102350.0,102340.0,0.001]
[1738163711784,0.82317054,102350.0,102330.0,0.00014684]
[1738163711785,0.195495,102340.0,102330.0,0.00014684]
[1738163711985,0.195495,102340.0,102330.0,0.19566084]
[1738163712984,0.195495,102340.0,102330.0,0.69425338]
[1738163713196,0.325586,102350.0,102340.0,0.195495]
[1738163713492,0.1301,102350.0,102330.0,0.69424438]
[1738163713687,0.195495,102340.0,102330.0,0.69424438]
[1738163714082,0.33328754,102340.0,102330.0,0.36094684]
[1738163714280,0.33328754,102340.0,102330.0,0.00014684]
[1738163714480,0.195495,102340.0,102330.0,0.55646084]
[1738163714686,0.19548,102350.0,102340.0,0.195476]
[1738163714884,0.19548,102350.0,102340.0,0.69406854]
[1738163716182,0.32197792,102360.0,102350.0,0.195476]
[1738163716382,0.32197792,102360.0,102350.0,0.556276]
[1738163717588,0.32197792,102360.0,102350.0,0.3608]
[1738163717589,0.45977046,102360.0,102350.0,0.3608]
[1738163718092,0.195495,102340.0,102330.0,0.00014684]
[1738163718284,0.195495,102340.0,102330.0,0.69425338]
[1738163719282,0.195495,102340.0,102330.0,0.00014684]
[1738163719892,0.323995,102340.0,102330.0,0.19566084]
[1738163720394,0.323995,102340.0,102330.0,0.00014684]
[1738163720588,0.46178754,102340.0,102330.0,0.00114684]
[1738163721284,0.46178754,102340.0,102330.0,0.00314684]
[1738163721485,0.323995,102340.0,102330.0,0.00314684]
[1738163721682,0.323995,102340.0,102330.0,0.00114684]
[1738163721996,0.196495,102340.0,102330.0,0.19566084]
[1738163722388,0.196495,102340.0,102330.0,0.00014684]
[1738163722689,0.69508754,102340.0,102330.0,0.00014684]
[1738163723594,0.49959254,102340.0,102310.0,0.00146589]
[1738163723897,0.195533,102320.0,102310.0,0.00146589]
[1738163724085,0.33332554,102320.0,102310.0,0.00146589]
[1738163724286,0.59422554,102320.0,102310.0,0.00146589]
[1738163725093,0.59422554,102320.0,102310.0,0.00246589]
[1738163725297,0.456433,102320.0,102310.0,0.00246589]
[1738163725498,0.195533,102320.0,102310.0,0.001]
[1738163725797,0.195552,102310.0,102300.0,0.73461919]
[1738163725989,0.33334454,102310.0,102300.0,0.73461919]
[1738163726585,0.195552,102310.0,102300.0,0.73461919]
[1738163727184,0.195552,102310.0,102300.0,0.00014684]
[1738163727388,0.195552,102310.0,102300.0,0.55651784]
[1738163727789,0.33334454,102310.0,102300.0,0.36094684]
[1738163728191,0.195552,102310.0,102300.0,0.55651784]
[1738163728492,0.195552,102310.0,102300.0,0.69431038]
[1738163728695,0.20528544,102320.0,102310.0,0.195552]
[1738163729000,0.00014684,102330.0,102310.0,0.49859254]
[1738163729199,0.19567084,102330.0,102320.0,0.195533]
[1738163729496,0.195533,102320.0,102310.0,0.821548]
[1738163729701,0.195533,102320.0,102310.0,0.684348]
[1738163731094,0.195533,102320.0,102310.0,0.82214054]
[1738163731599,0.195533,102320.0,102310.0,0.684348]
[1738163731990,0.195533,102320.0,102310.0,0.128]
[1738163732305,0.195533,102320.0,102310.0,0.82214454]
[1738163732603,0.19566784,102330.0,102320.0,0.195533]
[1738163732795,0.19566784,102330.0,102320.0,0.683033]
[1738163733906,0.00014684,102330.0,102320.0,0.683033]
[1738163734598,0.19566084,102330.0,102320.0,0.82082554]
[1738163735001,0.19566084,102330.0,102320.0,0.557333]
[1738163735899,0.19566084,102330.0,102320.0,0.559333]
[1738163736102,0.19566084,102330.0,102320.0,0.3638]
[1738163736294,0.19566084,102330.0,102320.0,0.59699759]
[1738163736495,0.19566084,102330.0,102320.0,0.79253059]
[1738163736797,0.19566084,102330.0,102320.0,0.23619759]
[1738163737003,0.69425338,102330.0,102320.0,0.23619759]
[1738163737503,0.69425338,102330.0,102320.0,0.23519759]
[1738163737999,0.33345338,102330.0,102320.0,0.23319759]
[1738163738195,0.00214684,102330.0,102320.0,0.92732313]
[1738163738395,0.00214684,102330.0,102320.0,1.33121567]
[1738163738603,0.002,102330.0,102320.0,1.33121567]
[1738163738903,0.08895187,102360.0,102350.0,0.195476]
[1738163738904,0.19692504,102360.0,102350.0,0.195476]
[1738163739101,0.195476,102350.0,102340.0,0.3608]
[1738163739297,0.54746154,102350.0,102330.0,0.556307]
[1738163739488,0.195495,102340.0,102330.0,0.3608]
[1738163739903,0.72968754,102340.0,102330.0,0.00014684]
[1738163741400,0.592895,102340.0,102330.0,0.00014684]
[1738163741605,0.196495,102340.0,102330.0,0.19566084]
[1738163741905,0.196495,102340.0,102330.0,0.55646084]
[1738163742114,0.195495,102340.0,102330.0,0.55646084]
[1738163744592,0.195495,102340.0,102330.0,0.36094684]
[1738163744904,0.953995,102340.0,102330.0,0.00014684]
[1738163745102,1.09178754,102340.0,102330.0,0.00014684]
[1738163745399,1.09178754,102340.0,102330.0,8.4e-07]
[1738163745802,1.09178754,102340.0,102290.0,0.63845873]
[1738163745803,1.39178754,102340.0,102290.0,0.69625419]
[1738163745993,0.195571,102300.0,102290.0,0.55785419]
[1738163746193,0.195571,102300.0,102290.0,0.00146619]
[1738163746598,0.409676,102340.0,102290.0,0.50005873]
[1738163746802,0.409676,102340.0,102320.0,0.23353333]
[1738163746803,0.195526,102330.0,102320.0,0.23353333]
[1738163747008,0.69426538,102330.0,102320.0,0.23353333]
[1738163748510,0.55647284,102330.0,102320.0,0.23353333]
[1738163749007,0.55847284,102330.0,102320.0,0.23353333]
[1738163749305,0.55847284,102330.0,102320.0,0.42906633]
[1738163749696,0.55947284,102330.0,102320.0,0.23353333]
[1738163750202,0.56937732,102330.0,102320.0,0.23353333]
[1738163750600,0.00314684,102330.0,102320.0,0.78986633]
[1738163750901,0.00314684,102330.0,102320.0,0.92765887]
[1738163751703,0.00314684,102330.0,102320.0,0.69412554]
[1738163752205,0.08761609,102340.0,102320.0,0.63638508]
[1738163752405,0.14602682,102350.0,102330.0,0.49859254]
[1738163752595,0.14602682,102350.0,102340.0,0.96818754]
[1738163753000,0.17523218,102360.0,102350.0,0.195476]
[1738163753207,0.17523218,102360.0,102350.0,0.69406854]
[1738163754095,0.37068918,102360.0,102350.0,0.556276]
[1738163754308,0.17523218,102360.0,102350.0,0.556276]
[1738163754909,0.17623218,102360.0,102350.0,0.69406854]
[1738163755104,0.37168918,102360.0,102350.0,0.69406854]
[1738163755305,0.196457,102360.0,102350.0,1.29750157]
[1738163755506,0.001,102360.0,102350.0,1.29750157]
[1738163757312,0.196457,102360.0,102350.0,1.15970903]
[1738163758508,0.196457,102360.0,102350.0,0.60343303]
[1738163758699,0.322657,102360.0,102350.0,0.79890903]
[1738163758905,0.455557,102360.0,102350.0,0.60343303]
[1738163759208,0.581857,102360.0,102350.0,0.60343303]
[1738163759402,1.08044954,102360.0,102350.0,0.23295921]
[1738163759598,1.08044954,102360.0,102350.0,0.02435921]
[1738163760203,1.08044954,102360.0,102340.0,0.29206351]
[1738163760204,0.195476,102350.0,102340.0,0.29206351]
[1738163760401,0.69406854,102350.0,102340.0,0.29206351]
[1738163760603,0.195495,102340.0,102330.0,0.73081309]
[1738163760808,0.69408754,102340.0,102330.0,0.73081309]
[1738163761410,0.49859254,102340.0,102310.0,0.43671203]
[1738163761615,0.195533,102320.0,102310.0,0.63226403]
[1738163761812,0.195533,102320.0,102310.0,0.63241087]
[1738163762004,0.69412554,102320.0,102310.0,0.43685887]
[1738163762206,0.33332554,102320.0,102310.0,0.43685887]
[1738163762402,0.556333,102320.0,102310.0,0.63241087]
[1738163762608,0.195533,102320.0,102310.0,0.43685887]
[1738163762809,0.69412554,102320.0,102310.0,0.43685887]
[1738163763310,0.69412554,102320.0,102310.0,0.00014684]
[1738163763712,0.556333,102320.0,102310.0,0.00014684]
[1738163764309,0.69412554,102320.0,102310.0,0.00014684]
[1738163764507,0.69412554,102320.0,102310.0,0.00114684]
[1738163764818,0.556333,102320.0,102310.0,0.00114684]
[1738163765218,0.69412554,102320.0,102310.0,0.00114684]
[1738163765515,0.556333,102320.0,102310.0,0.00114684]
[1738163765720,0.556333,102320.0,102310.0,0.19669884]
[1738163766021,0.556333,102320.0,102310.0,0.33449138]
[1738163766524,0.556333,102320.0,102310.0,0.19669884]
[1738163766712,0.556333,102320.0,102310.0,0.00114684]
[1738163766910,0.69412554,102320.0,102310.0,0.00114684]
[1738163767211,0.556333,102320.0,102310.0,0.00114684]
[1738163767618,0.195533,102320.0,102310.0,0.55749884]
[1738163767834,0.195533,102320.0,102310.0,0.69529138]
[1738163769124,0.195533,102320.0,102310.0,0.19669884]
[1738163769426,0.195533,102320.0,102310.0,0.00114684]
[1738163769625,0.69412554,102320.0,102310.0,0.00114684]
[1738163771025,0.69412554,102320.0,102310.0,0.00014684]
[1738163771214,0.69612554,102320.0,102310.0,0.00014684]
[1738163772022,0.197533,102320.0,102310.0,0.00014684]
[1738163772416,0.69612554,102320.0,102310.0,0.00014684]
[1738163772616,0.195571,102300.0,102290.0,0.1376]
[1738163773221,0.195571,102300.0,102290.0,0.33319]
[1738163773527,0.195571,102300.0,102290.0,0.83178254]
[1738163773722,0.195571,102300.0,102290.0,0.83378254]
[1738163773915,0.00014684,102310.0,102300.0,0.195571]
[1738163774115,0.00014684,102310.0,102300.0,0.82556354]
[1738163774825,0.11801158,102330.0,102300.0,0.74223081]
[1738163775017,0.11801158,102330.0,102320.0,1.05492554]
[1738163775223,0.1165452,102330.0,102320.0,1.05492554]
[1738163775413,0.3120592,102330.0,102320.0,1.05492554]
[1738163776029,0.1165452,102330.0,102320.0,1.05492554]
[1738163776212,0.3120592,102330.0,102320.0,1.05492554]
[1738163776418,0.3130592,102330.0,102320.0,0.917133]
[1738163776717,0.195533,102320.0,102310.0,0.33289584]
[1738163777021,0.195533,102320.0,102310.0,0.19569584]
[1738163777224,0.195533,102320.0,102310.0,0.00014684]
[1738163777425,0.33332554,102320.0,102310.0,0.00014684]
[1738163777628,0.45942554,102320.0,102310.0,0.00014684]
[1738163777924,0.321633,102320.0,102310.0,0.00014684]
[1738163778932,0.00014684,102340.0,102310.0,0.49973938]
[1738163779118,0.195516,102330.0,102320.0,0.69410654]
[1738163779627,0.19564484,102340.0,102330.0,0.195514]
[1738163779827,0.19564484,102340.0,102330.0,0.82280654]
[1738163780722,0.00014684,102340.0,102330.0,0.82280654]
[1738163781332,0.19564184,102340.0,102330.0,0.82280654]
[1738163781816,0.00014684,102340.0,102330.0,0.82280654]
[1738163782331,0.00014684,102340.0,102330.0,0.82380654]
[1738163783723,0.19564184,102340.0,102330.0,0.46300654]
[1738163783930,0.69423438,102340.0,102330.0,0.001]
[1738163784126,0.33343438,102340.0,102330.0,0.001]
[1738163784426,0.69423438,102340.0,102330.0,0.001]
[1738163784635,0.33332554,102320.0,102310.0,0.00014684]
[1738163784930,0.85939254,102320.0,102300.0,0.00146617]
[1738163785133,0.95454454,102310.0,102300.0,0.00146617]
[1738163785318,0.95454454,102310.0,102300.0,0.34881308]
[1738163786626,0.95454454,102310.0,102300.0,0.34981308]
[1738163788926,0.195571,102300.0,102290.0,0.00014684]
[1738163789118,0.83146354,102300.0,102290.0,0.00014684]
[1738163789324,0.693671,102300.0,102290.0,0.00014684]
[1738163789833,0.83146354,102300.0,102290.0,0.00014684]
[1738163790226,0.83146354,102300.0,102290.0,0.00214684]
[1738163790426,0.83146354,102300.0,102290.0,0.00514684]
[1738163790825,0.693671,102300.0,102290.0,0.00514684]
[1738163791033,0.83146354,102300.0,102290.0,0.00514684]
[1738163791219,0.91310354,102300.0,102290.0,8.4e-07]
[1738163791825,1.21310354,102300.0,102290.0,8.4e-07]
[1738163792426,0.91410354,102300.0,102290.0,8.4e-07]
[1738163792635,0.71853254,102300.0,102280.0,0.00014684]
[1738163792840,0.69418254,102290.0,102280.0,0.00014684]
[1738163797634,0.69418254,102290.0,102280.0,8.4e-07]
[1738163797938,0.70374641,102290.0,102280.0,8.4e-07]
[1738163798236,0.19559,102290.0,102280.0,0.55640984]
[1738163798441,0.19559,102290.0,102280.0,8.4e-07]
[1738163798943,0.33338254,102290.0,102280.0,8.4e-07]
[1738163799340,0.69418254,102290.0,102280.0,8.4e-07]
[1738163799845,0.195629,102270.0,102260.0,0.00946]
[1738163800043,1.05502154,102270.0,102260.0,0.00946]
[1738163800231,0.195667,102250.0,102240.0,0.36092234]
[1738163800436,0.33345954,102250.0,102240.0,0.36092234]
[1738163800745,0.195667,102250.0,102240.0,0.36092234]
[1738163801136,0.195667,102250.0,102240.0,0.55660834]
[1738163802346,0.195667,102250.0,102240.0,0.55860834]
[1738163802742,0.195667,102250.0,102240.0,0.56460834]
[1738163802932,0.195667,102250.0,102240.0,0.00812234]
[1738163803243,0.195667,102250.0,102240.0,0.56460834]
[1738163804041,0.195667,102250.0,102240.0,0.36892234]
[1738163804344,0.195667,102250.0,102240.0,0.56460834]
[1738163804840,0.195667,102250.0,102240.0,0.70240088]
[1738163805838,0.19579884,102260.0,102250.0,0.195667]
[1738163806031,0.19579884,102260.0,102250.0,0.82405954]
[1738163806032,0.00014684,102260.0,102250.0,0.82405954]
[1738163806232,0.00014684,102260.0,102250.0,0.95415954]
[1738163806445,0.19708427,102280.0,102270.0,0.195629]
[1738163806745,0.62296844,102290.0,102280.0,0.195609]
[1738163806746,0.45776444,102290.0,102280.0,0.195609]
[1738163807335,0.45776444,102290.0,102280.0,0.556409]
[1738163807538,0.26216844,102290.0,102280.0,0.556409]
[1738163807739,0.45775844,102290.0,102280.0,0.816909]
[1738163807940,0.20059,102290.0,102280.0,0.816909]
[1738163809642,0.19559,102290.0,102280.0,0.948109]
[1738163810348,0.195609,102280.0,102270.0,0.19576784]
[1738163810545,0.33340154,102280.0,102270.0,0.00014684]
[1738163810945,0.195609,102280.0,102270.0,0.19577584]
[1738163812538,0.195609,102280.0,102270.0,0.55657584]
[1738163812739,0.33340154,102280.0,102270.0,0.36094684]
[1738163812942,0.33340154,102280.0,102270.0,0.00014684]
[1738163813145,0.195609,102280.0,102270.0,0.00014684]
[1738163813348,0.195609,102280.0,102270.0,0.19577584]
[1738163813534,0.54748954,102290.0,102280.0,0.195594]
[1738163813535,0.195596,102290.0,102280.0,0.195594]
[1738163813942,0.195596,102290.0,102280.0,0.69418654]
[1738163814141,0.195596,102290.0,102280.0,0.95988654]
[1738163814342,0.195596,102290.0,102280.0,0.822094]
[1738163815349,0.195596,102290.0,102280.0,0.461294]
[1738163815547,0.195596,102290.0,102280.0,0.195594]
[1738163816353,0.198596,102290.0,102280.0,0.195594]
[1738163817056,0.195596,102290.0,102280.0,0.195594]
[1738163817252,0.195609,102280.0,102270.0,0.19577184]
[1738163818146,0.195609,102280.0,102270.0,0.00014684]
[1738163818341,0.195609,102280.0,102270.0,0.19577584]
[1738163818549,0.195609,102280.0,102270.0,0.00014684]
[1738163819351,0.195609,102280.0,102270.0,0.19577584]
[1738163819655,0.556409,102280.0,102270.0,0.00014684]
[1738163819853,0.556409,102280.0,102260.0,0.1746993]
[1738163819854,0.49859254,102280.0,102260.0,0.1746993]
[1738163820157,0.69422154,102270.0,102260.0,0.1746993]
[1738163821043,0.195629,102270.0,102260.0,0.3703473]
[1738163821244,0.195629,102270.0,102260.0,0.50813984]
[1738163821641,0.195629,102270.0,102260.0,0.3703473]
[1738163821844,0.195629,102270.0,102260.0,0.7311473]
[1738163822245,0.195629,102270.0,102260.0,0.556448]
[1738163822451,0.195648,102260.0,102250.0,0.3703593]
[1738163822752,0.33344054,102260.0,102250.0,0.1746993]
[1738163823251,0.69424054,102260.0,102250.0,0.1746993]
[1738163823457,0.95024054,102260.0,102250.0,0.1746993]
[1738163823951,0.95024054,102260.0,102250.0,0.1776993]
[1738163824454,0.75459254,102260.0,102240.0,0.52502925]
[1738163824646,0.69425954,102250.0,102240.0,0.52502925]
[1738163825557,0.195667,102250.0,102240.0,0.72071525]
[1738163825757,0.195667,102250.0,102240.0,0.195686]
[1738163825959,0.195667,102250.0,102240.0,0.196686]
[1738163826252,0.556467,102250.0,102240.0,0.196686]
[1738163826552,0.195667,102250.0,102240.0,0.557486]
[1738163826749,0.19679984,102260.0,102250.0,0.195667]
[1738163827148,0.195667,102250.0,102240.0,0.465472]
[1738163827355,0.195667,102250.0,102240.0,0.333672]
[1738163827549,0.33345954,102250.0,102240.0,0.333672]
[1738163827752,0.195667,102250.0,102240.0,0.332672]
[1738163828557,0.69411672,102250.0,102240.0,0.002]
[1738163828757,0.82221672,102250.0,102240.0,0.003]
[1738163830256,0.195705,102230.0,102220.0,0.52502925]
[1738163830462,0.195724,102220.0,102210.0,0.52649669]
[1738163830759,0.556524,102220.0,102210.0,0.52649669]
[1738163830959,0.195724,102220.0,102210.0,1.08303969]
[1738163831159,0.195724,102220.0,102210.0,0.72223969]
[1738163831754,0.195724,102220.0,102210.0,0.52649669]
[1738163832461,0.195724,102220.0,102210.0,0.88729669]
[1738163832765,0.69431654,102220.0,102210.0,0.52649669]
[1738163832959,0.69431654,102220.0,102210.0,0.52502925]
[1738163833150,0.46311654,102220.0,102210.0,0.53002925]
[1738163833556,0.325324,102220.0,102210.0,0.53002925]
[1738163833856,0.82391654,102220.0,102210.0,0.53002925]
[1738163834054,0.82391654,102220.0,102210.0,0.53202925]
[1738163835059,0.82391654,102220.0,102210.0,0.53102925]
[1738163835657,0.195724,102220.0,102210.0,0.70033554]
[1738163835856,0.195724,102220.0,102210.0,0.97073554]
[1738163836159,0.33351654,102220.0,102210.0,0.006]
[1738163836354,0.82481654,102220.0,102210.0,0.006]
[1738163836560,0.95391654,102220.0,102210.0,0.003]
[1738163837253,0.75919254,102220.0,102200.0,0.1]
[1738163837458,0.69433554,102210.0,102200.0,0.1]
[1738163840368,0.49859254,102210.0,102180.0,0.23511419]
[1738163840567,0.729682,102210.0,102200.0,0.001]
[1738163840865,1.090482,102210.0,102200.0,0.001]
[1738163841057,1.090482,102210.0,102200.0,0.003]
[1738163841462,1.090482,102210.0,102200.0,0.002]
[1738163841767,0.195782,102190.0,102180.0,0.55906279]
[1738163841967,0.556569,102200.0,102190.0,0.195782]
[1738163842272,0.195769,102200.0,102190.0,0.691282]
[1738163842459,0.195782,102190.0,102180.0,0.55806679]
[1738163842654,0.33357454,102190.0,102180.0,0.55806679]
[1738163842855,0.195782,102190.0,102180.0,0.55806679]
[1738163844161,0.56738507,102210.0,102200.0,0.195763]
[1738163844355,0.19689684,102210.0,102200.0,0.556563]
[1738163844570,0.00014684,102210.0,102200.0,1.08925554]
[1738163845060,0.19588984,102210.0,102200.0,0.951463]
[1738163845864,0.00014684,102210.0,102200.0,1.08925554]
[1738163846060,0.19588984,102210.0,102200.0,0.951463]
[1738163846260,0.00014684,102210.0,102200.0,1.08925554]
[1738163846568,0.19588984,102210.0,102200.0,0.951463]
[1738163847069,0.00014684,102210.0,102200.0,0.951463]
[1738163847259,0.00014684,102210.0,102200.0,0.952463]
[1738163847466,0.00114684,102210.0,102200.0,0.952463]
[1738163847960,0.00014684,102210.0,102200.0,0.954463]
[1738163848165,0.00014684,102210.0,102200.0,1.09225554]
[1738163848962,0.00014684,102210.0,102200.0,0.593663]
[1738163849170,0.69448238,102210.0,102200.0,0.593663]
[1738163849471,0.19588984,102210.0,102200.0,0.6261]
[1738163850069,0.33368238,102210.0,102200.0,0.003]
[1738163850270,0.46748238,102210.0,102200.0,0.003]
[1738163850866,0.59698238,102210.0,102200.0,0.003]
[1738163851973,0.95778238,102210.0,102200.0,0.003]
[1738163854262,0.76203938,102210.0,102180.0,0.00146779]
[1738163854467,0.69437454,102190.0,102180.0,0.00146779]
[1738163854873,0.195782,102190.0,102180.0,0.00146779]
[1738163855268,0.195782,102190.0,102180.0,0.36226779]
[1738163855464,0.195782,102190.0,102180.0,0.55806879]
[1738163855878,0.195782,102190.0,102180.0,0.36726779]
[1738163856366,0.195782,102190.0,102180.0,0.56306879]
[1738163857280,0.195782,102190.0,102180.0,0.56006879]
[1738163857481,0.196782,102190.0,102180.0,0.56006879]
[1738163857681,0.001,102190.0,102180.0,0.69786133]
[1738163857878,0.68309104,102210.0,102180.0,0.69586133]
[1738163858184,0.33355454,102200.0,102190.0,0.3608]
[1738163858678,0.195762,102200.0,102190.0,0.3608]
[1738163859383,0.33355454,102200.0,102190.0,0.3608]
[1738163859881,0.49859254,102200.0,102180.0,0.55806879]
[1738163860077,0.195782,102190.0,102180.0,0.55806879]
[1738163861786,0.33357454,102190.0,102180.0,0.36226779]
[1738163862077,0.195782,102190.0,102180.0,0.36226779]
[1738163862281,0.196782,102190.0,102180.0,0.36226779]
[1738163862683,0.33457454,102190.0,102180.0,0.36226779]
[1738163863379,0.33457454,102190.0,102180.0,0.55806879]
[1738163864683,0.49959254,102190.0,102170.0,1.08175131]
[1738163864885,0.33359354,102180.0,102170.0,0.88593731]
[1738163865683,0.33359354,102180.0,102170.0,0.52502925]
[1738163865885,0.46199354,102180.0,102170.0,0.52502925]
[1738163866284,0.195801,102180.0,102170.0,0.72084925]
[1738163866585,0.28781795,102180.0,102170.0,0.19582]
[1738163867374,0.28781795,102180.0,102170.0,0.55862]
[1738163867375,0.195801,102180.0,102170.0,0.55862]
[1738163867584,0.195801,102180.0,102170.0,0.55962]
[1738163867781,0.195801,102180.0,102170.0,0.65163695]
[1738163868079,0.195801,102180.0,102170.0,0.55962]
[1738163868471,0.28781795,102180.0,102170.0,0.55962]
[1738163868685,0.28781795,102180.0,102170.0,0.003]
[1738163869184,0.28781795,102180.0,102170.0,0.19882]
[1738163869383,0.28781795,102180.0,102170.0,0.003]
[1738163869777,0.64861795,102180.0,102170.0,0.003]
[1738163869986,0.5448339,102180.0,102160.0,0.52502925]
[1738163870287,0.90803695,102170.0,102160.0,0.52502925]
[1738163870872,0.195839,102160.0,102150.0,0.34877903]
[1738163871184,0.7406729,102160.0,102150.0,0.34877903]
[1738163871780,0.8131529,102160.0,102150.0,0.34877903]
[1738163871976,0.72113595,102160.0,102150.0,0.34877903]
[1738163872376,0.72213595,102160.0,102150.0,0.34877903]
[1738163873990,0.84973595,102160.0,102150.0,0.34877903]
[1738163874983,0.84973595,102160.0,102130.0,0.266]
[1738163874984,0.195877,102140.0,102130.0,0.266]
[1738163875174,0.64869395,102140.0,102130.0,0.1351]
[1738163875378,0.195897,102130.0,102120.0,0.69377692]
[1738163875573,0.195897,102130.0,102120.0,0.46677692]
[1738163875787,0.64871395,102130.0,102120.0,0.46677692]
[1738163876896,0.28791395,102130.0,102120.0,0.46677692]
[1738163877084,0.28791395,102130.0,102120.0,0.47377692]
[1738163877480,0.195897,102130.0,102120.0,0.47377692]
[1738163877786,0.28790395,102140.0,102130.0,0.195897]
[1738163877993,0.64870395,102140.0,102130.0,0.195897]
[1738163878393,0.556687,102140.0,102130.0,0.195897]
[1738163878588,0.49174726,102150.0,102140.0,0.195877]
[1738163878794,0.39973031,102150.0,102140.0,0.327577]
[1738163879289,0.49174726,102150.0,102140.0,0.327577]
[1738163879489,0.39973031,102150.0,102140.0,0.327577]
[1738163879987,0.20386231,102150.0,102140.0,0.78039395]
[1738163880683,0.32074323,102160.0,102140.0,0.58451695]
[1738163880879,0.32074323,102160.0,102150.0,0.8652919]
[1738163881091,0.20585302,102180.0,102170.0,0.19582]
[1738163881290,0.19581,102180.0,102170.0,0.64863695]
[1738163881486,0.19582,102170.0,102160.0,0.556636]
[1738163881792,0.19582,102170.0,102150.0,0.57741695]
[1738163881793,0.195839,102160.0,102150.0,0.681248]
[1738163881987,0.195839,102160.0,102150.0,0.68139484]
[1738163882697,0.28785595,102160.0,102150.0,0.68139484]
[1738163883087,0.28785595,102160.0,102150.0,0.12474684]
[1738163883291,0.28785595,102160.0,102150.0,0.00014684]
[1738163883594,0.326939,102160.0,102150.0,0.19600484]
[1738163883782,0.195839,102160.0,102150.0,0.19600484]
[1738163884192,0.28785595,102160.0,102150.0,0.00014684]
[1738163884589,0.195839,102160.0,102150.0,0.19600484]
[1738163885297,0.28785595,102160.0,102150.0,0.00014684]
[1738163885594,0.29788213,102160.0,102150.0,0.00014684]
[1738163887196,0.195839,102160.0,102150.0,0.64882179]
[1738163887594,0.195839,102160.0,102150.0,0.55680484]
[1738163887790,0.195839,102160.0,102150.0,0.00014684]
[1738163888000,0.28785595,102160.0,102150.0,0.00014684]
[1738163888400,0.195839,102160.0,102150.0,0.19600484]
[1738163888806,0.195839,102160.0,102150.0,0.55680484]
[1738163889005,0.195831,102170.0,102160.0,0.195839]
[1738163889204,0.195831,102170.0,102160.0,0.688939]
[1738163889404,0.195831,102170.0,102160.0,0.328139]
[1738163890109,0.195831,102170.0,102160.0,0.688939]
[1738163890310,0.195831,102170.0,102160.0,0.78095595]
[1738163890613,0.31247769,102180.0,102170.0,0.19582]
[1738163890814,0.40449464,102180.0,102170.0,0.3608]
[1738163891312,0.19582,102170.0,102160.0,0.688929]
[1738163891503,0.28783695,102170.0,102160.0,0.328129]
[1738163891697,0.19582,102170.0,102160.0,0.78094595]
[1738163892099,0.19582,102170.0,102160.0,0.688929]
[1738163892802,0.20095184,102180.0,102170.0,0.19582]
[1738163893005,0.20095184,102180.0,102170.0,0.89883695]
[1738163893299,0.00514684,102180.0,102170.0,0.89883695]
[1738163893509,0.00014684,102180.0,102170.0,0.89883695]
[1738163893804,0.00014684,102180.0,102170.0,0.80682]
[1738163893805,0.19594784,102180.0,102170.0,0.80682]
[1738163894415,0.19582,102170.0,102160.0,0.688931]
[1738163895208,0.64863695,102170.0,102160.0,0.1323]
[1738163895511,0.195839,102160.0,102150.0,0.00014684]
[1738163895816,0.28785595,102160.0,102150.0,0.00014684]
[1738163896917,0.198839,102160.0,102150.0,0.00014684]
[1738163897410,0.198839,102160.0,102150.0,0.36094684]
[1738163897614,0.198839,102160.0,102150.0,0.64882179]
[1738163897912,0.65165595,102160.0,102150.0,0.00014684]
[1738163898409,0.29085595,102160.0,102150.0,0.00014684]
[1738163898611,0.65065595,102160.0,102150.0,0.00114684]
[1738163898812,0.28985595,102160.0,102150.0,0.00114684]
[1738163899014,0.65065595,102160.0,102150.0,0.00114684]
[1738163899608,0.65065595,102160.0,102150.0,0.00014684]
[1738163899609,0.28985595,102160.0,102150.0,0.00014684]
[1738163899811,0.197839,102160.0,102150.0,0.64882179]
[1738163900414,0.197839,102160.0,102150.0,0.00014684]
[1738163900919,0.28985595,102160.0,102150.0,0.00014684]
[1738163901309,0.197839,102160.0,102150.0,0.00014684]
[1738163901712,0.197839,102160.0,102150.0,0.19600484]
[1738163901918,0.197839,102160.0,102150.0,0.00014684]
[1738163902213,0.65065595,102160.0,102150.0,0.00014684]
[1738163902616,0.28985595,102160.0,102150.0,0.00014684]
[1738163902916,0.65065595,102160.0,102150.0,0.00014684]
[1738163903411,0.558639,102160.0,102150.0,0.00014684]
[1738163905216,0.65065595,102160.0,102150.0,0.00014684]
[1738163906518,0.558639,102160.0,102150.0,0.00014684]
[1738163906712,0.558639,102160.0,102150.0,0.19600484]